fUSD/lending_fUSD_20240328
["ID","MTS","AMOUNT","RATE_DAILY","PERIOD"]
[320888977,1711666241425,-610.84,0.00049863,120]
[320888978,1711666241436,-500.0,0.00049863,120]
[320888979,1711666241445,-1265.96,0.00049863,120]
[320888980,1711666241454,-500.0,0.00049863,120]
[320888981,1711666241464,-500.0,0.00049863,120]
[320888982,1711666241473,-328.95983857,0.00049863,120]
[320888983,1711666241483,-622.72,0.00049863,120]
[320888984,1711666241492,-1548.54,0.00049863,120]
[320888985,1711666241501,-500.0,0.00049863,120]
[320888986,1711666241511,-500.0,0.00049863,120]
[320888987,1711666241519,-649.73,0.00049863,120]
[320888988,1711666241529,-212.24,0.00049863,120]
[320888989,1711666241538,-316.73287689,0.00049863,120]
[320888990,1711666241546,-8348.15,0.00049863,120]
[320888991,1711666241556,-500.0,0.00049863,120]
[320888992,1711666241565,-6166.87,0.00049863,120]
[320888993,1711666241575,-750.53,0.00049863,120]
[320888994,1711666241585,-4216.21,0.00049863,120]
[320888995,1711666241595,-689.26,0.00049863,120]
[320888996,1711666241604,-500.0,0.00049863,120]
[320888997,1711666241613,-500.0,0.00049863,120]
[320888998,1711666241623,-550.46,0.00049863,120]
[320888999,1711666241633,-500.0,0.00049863,120]
[320889000,1711666241644,-500.0,0.00049863,120]
[320889001,1711666241653,-500.0,0.00049863,120]
[320889002,1711666241662,-1304.77,0.00049863,120]
[320889003,1711666241672,-500.0,0.00049863,120]
[320889004,1711666241681,-1264.27,0.00049863,120]
[320889005,1711666241690,-973.66,0.00049863,120]
[320889006,1711666241699,-500.0,0.00049863,80]
[320889007,1711666241711,-522.31,0.00049863,120]
[320889008,1711666241721,-1126.12,0.00049863,120]
[320889009,1711666241731,-500.0,0.00049863,120]
[320889010,1711666241740,-1523.41,0.00049863,120]
[320889011,1711666241749,-501.21,0.00049863,120]
[320889012,1711666241759,-500.0,0.00049863,120]
[320889013,1711666241768,-500.0,0.00049863,120]
[320889014,1711666241777,-763.01,0.00049863,120]
[320889015,1711666241789,-2463.77,0.00049863,120]
[320889016,1711666241798,-712.33,0.00049863,120]
[320889017,1711666241809,-500.0,0.00049863,120]
[320889018,1711666241818,-1228.94,0.00049863,120]
[320889019,1711666241827,-538.56,0.00049863,120]
[320889020,1711666241837,-478.7160443,0.00049863,120]
[320889021,1711666241847,-854.33,0.00049863,120]
[320889022,1711666241855,-4472.82,0.00049863,120]
[320889023,1711666241865,-1030.35,0.00049863,120]
[320889024,1711666241874,-226.47,0.00049863,120]
[320889025,1711666241882,-866.94,0.00049863,120]
[320889026,1711666241891,-500.0,0.00049863,120]
[320889027,1711666241901,-9937.93,0.00049863,120]
[320889028,1711666241910,-569.96,0.00049863,120]
[320889029,1711666241919,-784.16,0.00049863,120]
[320889030,1711666241928,-1220.52,0.00049863,120]
[320889031,1711666241937,-580.23,0.00049863,120]
[320889032,1711666241946,-788.15,0.00049863,120]
[320889033,1711666241955,-427.83845841,0.00049863,120]
[320889034,1711666241964,-500.0,0.00049863,120]
[320889035,1711666241974,-408.7486641,0.00049863,120]
[320889036,1711666241983,-500.0,0.00049863,120]
[320889037,1711666241993,-622.09,0.00049863,120]
[320889038,1711666242002,-1189.72,0.00049863,120]
[320889039,1711666242012,-622.68,0.00049863,120]
[320889040,1711666242021,-625.68,0.00049863,120]
[320889041,1711666242031,-765.54,0.00049863,120]
[320889042,1711666242044,-500.0,0.00049863,120]
[320889043,1711666242054,-1048.39,0.00049863,120]
[320889044,1711666242063,-3744.77,0.00049863,120]
[320889045,1711666242072,-717.11,0.00049863,120]
[320889046,1711666242082,-1110.69,0.00049863,21]
[320889047,1711666242092,-3072.9,0.00049863,120]
[320889048,1711666242101,-500.0,0.00049863,2]
[320889049,1711666242110,-500.0,0.00049863,120]
[320889050,1711666242121,-460.31,0.00049863,120]
[320889051,1711666242130,-899.95,0.00049863,120]
[320889052,1711666242139,-1657.03,0.00049863,120]
[320889053,1711666242148,-1015.72,0.00049863,120]
[320889054,1711666242157,-652.49,0.00049863,120]
[320889055,1711666242167,-234.8,0.00049863,120]
[320889056,1711666242177,-500.0,0.00049863,120]
[320889057,1711666242187,-500.0,0.00049863,120]
[320889058,1711666242196,-927.99,0.00049863,120]
[320889059,1711666242206,-989.83,0.00049863,120]
[320889060,1711666242216,-1544.92,0.00049863,120]
[320889061,1711666242225,-941.22,0.00049863,120]
[320889062,1711666242234,-463.44,0.00049863,120]
[320889063,1711666242243,-3388.99,0.00049863,120]
[320889064,1711666242252,-733.82,0.00049863,120]
[320889065,1711666242262,-935.62,0.00049863,120]
[320889066,1711666242271,-773.34,0.00049863,120]
[320889067,1711666242281,-860.01,0.00049863,120]
[320889068,1711666242292,-500.0,0.00049863,120]
[320889069,1711666242302,-500.0,0.00049863,120]
[320889070,1711666242311,-1708.96,0.00049863,120]
[320889071,1711666242320,-2413.39,0.00049863,120]
[320889072,1711666242330,-772.22,0.00049863,120]
[320889073,1711666242339,-779.09,0.00049863,120]
[320889074,1711666242348,-1150.2,0.00049863,120]
[320889075,1711666242358,-1257.34,0.00049863,120]
[320889076,1711666242368,-246.34,0.00049863,120]
[320889077,1711666242377,-1151.59,0.00049863,120]
[320889078,1711666242386,-852.86,0.00049863,120]
[320889079,1711666242397,-500.0,0.00049863,120]
[320889080,1711666242407,-888.25,0.00049863,120]
[320889081,1711666242417,-1817.76,0.00049863,120]
[320889082,1711666242428,-500.0,0.00049863,120]
[320889083,1711666242437,-500.0,0.00049863,120]
[320889084,1711666242447,-500.0,0.00049863,120]
[320889085,1711666242457,-2136.65,0.00049863,120]
[320889086,1711666242467,-500.0,0.00049863,120]
[320889087,1711666242477,-924.06,0.00049863,120]
[320889088,1711666242486,-2643.51,0.00049863,120]
[320889089,1711666242496,-500.0,0.00049863,120]
[320889090,1711666242505,-631.75,0.00049863,120]
[320889091,1711666242515,-966.29,0.00049863,120]
[320889092,1711666242525,-500.0,0.00049863,120]
[320889093,1711666242534,-579.2,0.00049863,120]
[320889094,1711666242543,-544.68,0.00049863,120]
[320889095,1711666242553,-664.82,0.00049863,120]
[320889097,1711666242562,-417.04,0.00049863,120]
[320889099,1711666242571,-1099.06,0.00049863,120]
[320889100,1711666242581,-500.0,0.00049863,2]
[320889101,1711666242590,-500.0,0.00049863,120]
[320889103,1711666242600,-1657.51,0.00049863,120]
[320889104,1711666242610,-939.53,0.00049863,120]
[320889105,1711666242621,-828.6,0.00049863,120]
[320889106,1711666242631,-500.0,0.00049863,120]
[320889107,1711666242641,-891.91,0.00049863,120]
[320889108,1711666242650,-152.10641994,0.00049873,30]
[320889109,1711666242659,-172.49338142,0.00049905,3]
[320889110,1711666242668,-154.58347963,0.00049942,30]
[320889111,1711666242678,-1001.0,0.0005,120]
[320889112,1711666242687,-1613.84955127,0.00050036,26]
[320889113,1711666242696,-512.0,0.00050082,60]
[320889114,1711666242706,-179.60290379,0.00050113,26]
[320889115,1711666242715,-172.48230441,0.00050113,26]
[320889116,1711666242725,-489.22205612,0.00050136,120]
[320889117,1711666242734,-676.57,0.00050136,120]
[320889118,1711666242743,-500.0,0.00050136,120]
[320889119,1711666242752,-500.0,0.00050136,120]
[320889120,1711666242762,-500.0,0.00050136,120]
[320889122,1711666242771,-500.0,0.00050136,120]
[320889124,1711666242780,-500.0,0.00050136,120]
[320889126,1711666242790,-500.0,0.00050136,120]
[320889129,1711666242799,-500.0,0.00050136,120]
[320889132,1711666242809,-643.26,0.00050136,120]
[320889135,1711666242819,-500.0,0.00050136,120]
[320889137,1711666242828,-510.8,0.00050136,120]
[320889139,1711666242838,-155.28,0.00050136,120]
[320889141,1711666242847,-500.0,0.00050136,120]
[320889143,1711666242857,-500.0,0.00050136,120]
[320889144,1711666242866,-500.0,0.00050136,120]
[320889145,1711666242876,-516.64,0.00050136,120]
[320889146,1711666242888,-500.0,0.00050136,120]
[320889147,1711666242897,-500.0,0.00050136,120]
[320889148,1711666242907,-500.0,0.00050136,120]
[320889149,1711666242917,-500.0,0.00050136,120]
[320889150,1711666242929,-500.0,0.00050136,120]
[320889151,1711666242939,-500.0,0.00050136,120]
[320889152,1711666242950,-500.0,0.00050136,120]
[320889153,1711666242960,-500.0,0.00050136,120]
[320889154,1711666242970,-500.0,0.00050136,120]
[320889155,1711666242981,-447.65392599,0.00050136,120]
[320889156,1711666242991,-500.0,0.00050136,120]
[320889157,1711666243001,-500.0,0.00050136,120]
[320889158,1711666243011,-500.0,0.00050136,120]
[320889159,1711666243020,-192.52517878,0.00050136,120]
[320889160,1711666243029,-500.0,0.00050136,120]
[320889161,1711666243040,-500.0,0.00050136,120]
[320889162,1711666243050,-635.62,0.00050136,120]
[320889163,1711666243060,-500.0,0.00050136,120]
[320889164,1711666243070,-500.0,0.00050136,120]
[320889165,1711666243080,-500.0,0.00050136,120]
[320889166,1711666243090,-500.0,0.00050136,120]
[320889167,1711666243099,-500.0,0.00050136,120]
[320889168,1711666243109,-500.0,0.00050136,120]
[320889169,1711666243120,-500.0,0.00050136,120]
[320889170,1711666243130,-500.0,0.00050136,120]
[320889171,1711666243141,-500.0,0.00050136,120]
[320889172,1711666243151,-656.59,0.00050136,120]
[320889173,1711666243161,-500.0,0.00050136,120]
[320889174,1711666243170,-500.0,0.00050136,30]
[320889175,1711666243180,-500.0,0.00050136,120]
[320889176,1711666243190,-500.0,0.00050136,120]
[320889177,1711666243200,-500.0,0.00050136,120]
[320889178,1711666243209,-500.0,0.00050136,120]
[320889179,1711666243219,-500.0,0.00050136,120]
[320889180,1711666243228,-580.53,0.00050136,120]
[320889181,1711666243238,-515.28,0.00050136,120]
[320889182,1711666243247,-530.89,0.00050136,120]
[320889183,1711666243258,-835.44,0.00050136,120]
[320889184,1711666243267,-500.0,0.00050136,120]
[320889185,1711666243277,-500.0,0.00050136,120]
[320889186,1711666243286,-500.0,0.00050136,120]
[320889187,1711666243296,-500.0,0.00050136,120]
[320889188,1711666243306,-500.0,0.00050136,120]
[320889189,1711666243315,-500.0,0.00050136,120]
[320889190,1711666243325,-500.0,0.00050136,120]
[320889191,1711666243335,-500.0,0.00050136,120]
[320889192,1711666243346,-529.76,0.00050136,120]
[320889193,1711666243355,-518.65,0.00050136,120]
[320889194,1711666243367,-500.0,0.00050136,120]
[320889195,1711666243377,-500.0,0.00050136,120]
[320889196,1711666243387,-165.07,0.00050136,120]
[320889197,1711666243397,-500.0,0.00050136,120]
[320889198,1711666243406,-500.0,0.00050136,120]
[320889199,1711666243417,-500.0,0.00050136,120]
[320889201,1711666243426,-528.66,0.00050136,120]
[320889203,1711666243436,-204.2018972,0.00050136,120]
[320889205,1711666243446,-500.0,0.00050136,120]
[320889207,1711666243455,-500.0,0.00050136,120]
[320889208,1711666243465,-511.26,0.00050136,120]
[320889209,1711666243474,-500.0,0.00050136,120]
[320889210,1711666243483,-500.0,0.00050136,120]
[320889211,1711666243493,-500.0,0.00050136,120]
[320889212,1711666243502,-513.81,0.00050136,120]
[320889213,1711666243512,-589.22,0.00050136,120]
[320889214,1711666243522,-436.14926895,0.00050136,120]
[320889215,1711666243532,-500.0,0.00050136,120]
[320889216,1711666243541,-500.0,0.00050136,120]
[320889217,1711666243550,-500.0,0.00050136,120]
[320889218,1711666243560,-500.0,0.00050136,120]
[320889219,1711666243569,-500.0,0.00050136,120]
[320889220,1711666243579,-500.0,0.00050136,120]
[320889221,1711666243588,-500.0,0.00050136,120]
[320889222,1711666243598,-500.0,0.00050136,120]
[320889223,1711666243607,-567.24,0.00050136,120]
[320889224,1711666243616,-500.0,0.00050136,120]
[320889225,1711666243626,-613.07,0.00050136,120]
[320889226,1711666243635,-545.45,0.00050136,120]
[320889227,1711666243645,-170.04860658,0.00050136,120]
[320889228,1711666243654,-500.0,0.00050136,120]
[320889229,1711666243664,-500.0,0.00050136,120]
[320889230,1711666243674,-454.28,0.00050136,120]
[320889231,1711666243683,-500.0,0.00050136,120]
[320889232,1711666243693,-500.0,0.00050136,120]
[320889233,1711666243702,-500.0,0.00050136,120]
[320889234,1711666243712,-2241.04,0.00050136,120]
[320889235,1711666243721,-500.0,0.00050136,120]
[320889236,1711666243731,-594.15661168,0.00050136,120]
[320889237,1711666243741,-500.0,0.00050136,120]
[320889238,1711666243751,-959.82,0.00050136,120]
[320889239,1711666243761,-682.28,0.00050136,120]
[320889240,1711666243771,-500.0,0.00050136,2]
[320889241,1711666243781,-500.0,0.00050136,7]
[320889242,1711666243791,-179.24,0.00050136,120]
[320889243,1711666243800,-1744.22,0.00050136,120]
[320889244,1711666243810,-859.17,0.00050136,120]
[320889245,1711666243821,-944.96,0.00050136,120]
[320889246,1711666243831,-871.7,0.00050136,120]
[320889247,1711666243841,-500.0,0.00050136,120]
[320889248,1711666243851,-500.0,0.00050136,120]
[320889249,1711666243860,-1347.07,0.00050136,120]
[320889250,1711666243870,-787.0,0.00050136,120]
[320889251,1711666243880,-1308.1,0.00050136,120]
[320889252,1711666243890,-500.0,0.00050136,120]
[320889253,1711666243900,-921.1,0.00050136,120]
[320889254,1711666243910,-500.0,0.00050136,120]
[320889255,1711666243919,-500.0,0.00050136,120]
[320889256,1711666243929,-1313.27,0.00050136,120]
[320889257,1711666243939,-205.72,0.00050136,120]
[320889258,1711666243949,-368.54915947,0.00050136,120]
[320889259,1711666243959,-893.27,0.00050136,120]
[320889260,1711666243968,-910.6,0.00050136,120]
[320889261,1711666243978,-500.0,0.00050136,120]
[320889262,1711666243988,-610.84,0.00050136,120]
[320889263,1711666243997,-500.0,0.00050136,120]
[320889264,1711666244008,-1265.96,0.00050136,120]
[320889265,1711666244017,-534.46,0.00050136,120]
[320889266,1711666244027,-500.0,0.00050136,120]
[320889267,1711666244037,-622.72,0.00050136,120]
[320889268,1711666244050,-1548.54,0.00050136,120]
[320889269,1711666244059,-481.62,0.00050136,120]
[320889270,1711666244068,-500.0,0.00050136,120]
[320889271,1711666244078,-649.73,0.00050136,120]
[320889272,1711666244089,-8348.15,0.00050136,120]
[320889273,1711666244099,-500.0,0.00050136,120]
[320889274,1711666244108,-6166.87,0.00050136,120]
[320889275,1711666244118,-750.53,0.00050136,120]
[320889276,1711666244128,-984.45,0.00050136,120]
[320889277,1711666244138,-4216.21,0.00050136,120]
[320889278,1711666244148,-689.26,0.00050136,120]
[320889279,1711666244157,-500.0,0.00050136,120]
[320889280,1711666244167,-500.0,0.00050136,120]
[320889281,1711666244177,-550.46,0.00050136,120]
[320889282,1711666244187,-1341.17,0.00050136,120]
[320889283,1711666244197,-500.0,0.00050136,120]
[320889284,1711666244206,-500.0,0.00050136,120]
[320889285,1711666244216,-500.0,0.00050136,120]
[320889286,1711666244225,-1304.77,0.00050136,120]
[320889287,1711666244234,-500.0,0.00050136,120]
[320889288,1711666244244,-1264.27,0.00050136,120]
[320889289,1711666244254,-858.84,0.00050136,120]
[320889290,1711666244265,-973.66,0.00050136,120]
[320889291,1711666244274,-500.0,0.00050136,80]
[320889292,1711666244284,-522.31,0.00050136,120]
[320889293,1711666244293,-1126.12,0.00050136,120]
[320889294,1711666244303,-500.0,0.00050136,120]
[320889295,1711666244313,-1523.41,0.00050136,120]
[320889296,1711666244323,-501.21,0.00050136,120]
[320889297,1711666244333,-798.49,0.00050136,120]
[320889298,1711666244343,-500.0,0.00050136,120]
[320889299,1711666244353,-500.0,0.00050136,120]
[320889300,1711666244363,-763.01,0.00050136,120]
[320889301,1711666244374,-2463.77,0.00050136,120]
[320889302,1711666244383,-500.0,0.00050136,120]
[320889303,1711666244393,-712.33,0.00050136,120]
[320889304,1711666244403,-1228.94,0.00050136,120]
[320889305,1711666244413,-1175.14,0.00050136,120]
[320889306,1711666244423,-538.56,0.00050136,120]
[320889307,1711666244433,-854.33,0.00050136,120]
[320889308,1711666244443,-4472.82,0.00050136,120]
[320889309,1711666244453,-1013.6,0.00050136,120]
[320889310,1711666244650,-1030.35,0.00050136,120]
[320889311,1711666244660,-866.94,0.00050136,120]
[320889312,1711666244670,-500.0,0.00050136,120]
[320889313,1711666244680,-569.96,0.00050136,120]
[320889314,1711666244689,-4593.57876695,0.00050136,120]
[320889315,1711666244910,-3537.64514157,0.00050136,120]
[320889316,1711666244922,-1806.70609148,0.00050136,120]
[320889317,1711666244931,-71.39390852,0.00050136,120]
[320889318,1711666244943,-712.76609148,0.00050136,120]
[320889319,1711666244952,-1019.16,0.00050136,120]
[320889320,1711666244961,-1220.52,0.00050136,120]
[320889321,1711666244970,-580.23,0.00050136,120]
[320889322,1711666244980,-1594.54,0.00050136,120]
[320889323,1711666244989,-788.15,0.00050136,120]
[320889324,1711666244998,-500.0,0.00050136,120]
[320889325,1711666245019,-500.0,0.00050136,120]
[320889326,1711666245030,-125.66299502,0.00050136,120]
[320889327,1711666245052,-496.42700498,0.00050136,120]
[320889328,1711666245062,-697.52,0.00050136,120]
[320889329,1711666245071,-1189.72,0.00050136,120]
[320889330,1711666245082,-622.68,0.00050136,120]
[320889331,1711666245092,-625.68,0.00050136,120]
[320889332,1711666245102,-765.54,0.00050136,120]
[320889333,1711666245111,-500.0,0.00050136,120]
[320889334,1711666245121,-1048.39,0.00050136,120]
[320889335,1711666245131,-500.0,0.00050136,120]
[320889336,1711666245142,-637.04299502,0.00050136,120]
[320889337,1711666245155,-3107.72700498,0.00050136,120]
[320889338,1711666245166,-717.11,0.00050136,120]
[320889339,1711666245176,-3072.9,0.00050136,120]
[320889340,1711666245186,-1110.69,0.00050136,21]
[320889341,1711666245195,-500.0,0.00050136,2]
[320889342,1711666245205,-500.0,0.00050136,120]
[320889343,1711666245214,-500.0,0.00050136,120]
[320889344,1711666245225,-899.95,0.00050136,120]
[320889345,1711666245235,-1657.03,0.00050136,120]
[320889346,1711666245245,-1015.72,0.00050136,120]
[320889347,1711666245256,-652.49,0.00050136,120]
[320889348,1711666245267,-1283.17,0.00050136,120]
[320889349,1711666245276,-500.0,0.00050136,120]
[320889350,1711666245287,-500.0,0.00050136,120]
[320889351,1711666245297,-927.99,0.00050136,120]
[320889352,1711666245306,-989.83,0.00050136,120]
[320889353,1711666245316,-1544.92,0.00050136,120]
[320889354,1711666245326,-941.22,0.00050136,120]
[320889355,1711666245338,-3388.99,0.00050136,120]
[320889356,1711666245349,-733.82,0.00050136,120]
[320889357,1711666245360,-935.62,0.00050136,120]
[320889358,1711666245371,-1209.94,0.00050136,120]
[320889359,1711666245383,-773.34,0.00050136,120]
[320889360,1711666245394,-860.01,0.00050136,120]
[320889361,1711666245405,-500.0,0.00050136,120]
[320889362,1711666245415,-500.0,0.00050136,120]
[320889363,1711666245426,-1708.96,0.00050136,120]
[320889364,1711666245436,-2413.39,0.00050136,120]
[320889365,1711666245446,-772.22,0.00050136,120]
[320889366,1711666245461,-779.09,0.00050136,120]
[320889367,1711666245471,-1150.2,0.00050136,120]
[320889368,1711666245481,-1566.39,0.00050136,120]
[320889369,1711666245490,-1257.34,0.00050136,120]
[320889370,1711666245501,-1151.59,0.00050136,120]
[320889371,1711666245512,-852.86,0.00050136,120]
[320889372,1711666245521,-977.28,0.00050136,120]
[320889373,1711666245531,-500.0,0.00050136,120]
[320889374,1711666245541,-888.25,0.00050136,120]
[320889375,1711666245551,-1817.76,0.00050136,120]
[320889376,1711666245560,-500.0,0.00050136,120]
[320889378,1711666245571,-500.0,0.00050136,120]
[320889380,1711666245581,-500.0,0.00050136,120]
[320889381,1711666245590,-2136.65,0.00050136,120]
[320889383,1711666245600,-500.0,0.00050136,120]
[320889385,1711666245610,-924.06,0.00050136,120]
[320889387,1711666245620,-2643.51,0.00050136,120]
[320889389,1711666245630,-500.0,0.00050136,120]
[320889392,1711666245639,-966.29,0.00050136,120]
[320889394,1711666245648,-631.75,0.00050136,120]
[320889396,1711666245658,-500.0,0.00050136,120]
[320889398,1711666245667,-579.2,0.00050136,120]
[320889400,1711666245677,-544.68,0.00050136,120]
[320889402,1711666245687,-664.82,0.00050136,120]
[320889404,1711666245696,-978.17,0.00050136,120]
[320889406,1711666245706,-1099.06,0.00050136,120]
[320889409,1711666245719,-268.08,0.00050136,2]
[320889410,1711666245729,-500.0,0.00050136,120]
[320889411,1711666245739,-1657.51,0.00050136,120]
[320889412,1711666245748,-939.53,0.00050136,120]
[320889413,1711666245758,-828.6,0.00050136,120]
[320889414,1711666245769,-500.0,0.00050136,120]
[320889416,1711666245778,-891.91,0.00050136,120]
[320889418,1711666245788,-155.26708592,0.00050144,60]
[320889420,1711666245798,-185.04346381,0.00050202,2]
[320889422,1711666245809,-500.0,0.00050207,120]
[320889424,1711666245818,-63791.79237668,0.00050208,2]
[320889426,1711666245828,-167.40029184,0.00050213,2]
[320889428,1711666245838,-269.22391117,0.00050219,2]
[320889431,1711666245848,-75085.84347628,0.0005022,2]
[320889433,1711666245863,-3213.22566065,0.0005022,2]
[320889437,1711666245890,-366.12449999,0.00049315,120]
[320889439,1711666245906,-133.87550001,0.00049315,120]
[320889441,1711666245916,-696.05507909,0.0005022,2]
[320889442,1711666245926,-363.2428425,0.00050229,2]
[320889443,1711666245944,-1109.80142368,0.00050229,2]
[320889444,1711666245956,-539.96799798,0.00050229,2]
[320889449,1711666246907,-150.0,0.00048044,2]
[320889450,1711666246918,-953.01,0.00049588,120]
[320889451,1711666247044,-500.0,0.00049589,120]
[320889452,1711666247056,-953.01,0.00049862,120]
[320889453,1711666247067,-500.0,0.00049863,120]
[320889454,1711666247076,-500.0,0.00050136,120]
[320889455,1711666247087,-953.01,0.00050136,120]
[320889456,1711666247096,-19113.59205766,0.00050229,2]
[320889457,1711666247111,-729.98176943,0.00050229,2]
[320889458,1711666247133,-1956.49059965,0.00050229,2]
[320889459,1711666247240,-839.54893376,0.00050229,2]
[320889460,1711666247546,-921.38083285,0.00050229,2]
[320889461,1711666247559,-2440.04796636,0.00050229,2]
[320889462,1711666247572,-711.97999997,0.00050229,2]
[320889463,1711666248167,-296.445,0.00048044,2]
[320889464,1711666248176,-500.0,0.00049315,120]
[320889465,1711666248186,-500.0,0.00049589,120]
[320889466,1711666248195,-500.0,0.00049863,120]
[320889467,1711666248205,-268.78,0.00050136,120]
[320889468,1711666248215,-3137.70998659,0.00050229,2]
[320889469,1711666248308,-59.56252001,0.00050229,2]
[320889470,1711666248394,-47071.81728558,0.00050229,2]
[320889471,1711666248403,-167.40029184,0.00050235,2]
[320889472,1711666248414,-269.22391117,0.00050237,2]
[320889473,1711666248423,-185.04346381,0.00050242,2]
[320889474,1711666248433,-185.04346381,0.00050245,2]
[320889475,1711666248442,-500.0,0.00050247,120]
[320889476,1711666248451,-63791.79237668,0.00050248,2]
[320889477,1711666248460,-22022.94006953,0.00050252,2]
[320889478,1711666249002,2528.80406101,0.000225,2]
[320889480,1711666270129,27471.19593899,0.00018,2]
[320889481,1711666270163,4295946.44358859,0.00018,2]
[320889482,1711666294521,2453.387808,0.000225,2]
[320889483,1711666306706,2019.82560886,0.000225,2]
[320889517,1711666569678,-952.92212758,0.0003,4]
[320889518,1711666569701,-404.51729188,0.0003,4]
[320889520,1711666637449,-478.77260254,0.0003,4]
[320889521,1711666667685,-350.0,0.00029,3]
[320889523,1711666690317,-400.0,0.00031,3]
[320889524,1711666745115,-2275.201641,0.00033,7]
[320889525,1711666804007,8000.0,0.00022586,2]
[320889526,1711666804028,1279.00636762,0.00022586,2]
[320889576,1711667432086,-435.30823423,0.00032997,4]
[320889578,1711667432096,-432.6306729,0.00032998,4]
[320889584,1711667432142,-1340.6851784,0.00032998,4]
[320889586,1711667432152,-450.0,0.00033,3]
[320889587,1711667432161,-241.0,0.000333,3]
[320889588,1711667432170,-500.0,0.00035,3]
[320889589,1711667432179,-162.49651739,0.00044282,2]
[320889590,1711667432188,-440.12783223,0.00044382,30]
[320889591,1711667432198,-210.62,0.00045625,2]
[320889592,1711667432207,-152.0,0.00046471,3]
[320889593,1711667432217,-250.0,0.00047535,112]
[320889594,1711667432226,-304.52,0.00047558,2]
[320889595,1711667432235,-159.98,0.00047718,15]
[320889596,1711667432245,-499.99,0.00047718,2]
[320889597,1711667432254,-354.79,0.00047794,120]
[320889598,1711667432263,-155.03,0.0004781,2]
[320889599,1711667432273,-210.62,0.00047889,2]
[320889600,1711667432283,-2689.39893313,0.00048,15]
[320889601,1711667432315,-487.68809168,0.00048,15]
[320889630,1711667438006,-1004.43062055,0.00048,15]
[320889631,1711667438058,-818.48235464,0.00048,15]
[320889632,1711667438067,-159.37394238,0.00048019,30]
[320889633,1711667438077,-1000.0,0.00048286,2]
[320889634,1711667438088,-159.37394238,0.00048344,30]
[320889635,1711667438098,-154.58347963,0.00048354,30]
[320889636,1711667438107,-159.37394238,0.00048528,30]
[320889637,1711667438117,-153.468794,0.00048572,30]
[320889638,1711667438126,-226.79648,0.00048572,30]
[320889639,1711667438229,-277.636698,0.00048572,30]
[320889640,1711667438242,-11354.56216448,0.000487,120]
[320889641,1711667438252,-329.9338,0.0004878,2]
[320889642,1711667438261,-2927.09215618,0.00048799,2]
[320889643,1711667438271,-162.49651739,0.00048799,2]
[320889644,1711667438281,-1479.3620886,0.00048799,25]
[320889647,1711667438291,-172.48230441,0.000488,25]
[320889649,1711667438301,-178.56028983,0.000488,13]
[320889651,1711667438310,-4263.52362465,0.000488,60]
[320889653,1711667438320,-4398.78,0.00048868,60]
[320889655,1711667438329,-15393.12556662,0.00048877,2]
[320889657,1711667438338,-574.94928516,0.00048878,4]
[320889660,1711667438347,-1642.74285567,0.00048878,4]
[320889663,1711667438357,-964.77251522,0.00048878,4]